{"text_format":"1","workbook":"xlsx","n_sheets":4,"sheets":["Source","Target","By_one","التقرير الشهري "],"not_rendered":{"charts":0,"images":0,"macros":1,"external_links":0,"defined_names":6,"comments":0,"pivot_tables":0},"unopened":[],"bounds":{"document_bytes":16777216,"sheet_cells":100000,"rows_first":2000,"rows_last":500,"rows_between":2000,"halvings":0,"cell_chars":16384,"cell_head_chars":4096},"cells_cut":0,"cells_raw":0,"read":"whole","date_system":"1900"}

{"sheet":"Source","index":0,"n_rows":13,"n_cols":11,"rows_kept":13,"cut":false,"hidden":false,"merged":[[0,0,1,8]]}
["سجل كهرباء المخيم"]
[]
["كود المشترك","الاسم الثلاثي","القراءة السابقة","القراءة الحالية ","كمية الاستهلاك ","سعر  الكيلو ","المبلغ المستحق ","فاقد الشبكة","تاريخ الدفع"]
[1,"عبدالقادر سعدي ",700,810,{"$f":"D4-C4","v":110},1.1000000000000001,{"$f":"F4*E4","v":121.00000000000001},null,"2021-01-21",null,"Printed On:29/01/21"]
[2,"حسام سعدي ",250,305,{"$f":"D5-C5","v":55},1.1000000000000001,{"$f":"IF(OR(E5=\"\",F5=\"\"),\"\",PRODUCT(E5,F5))","v":60.500000000000007},null,"2021-01-21"]
[3,"عبدالعزيز الشيخ",575,645,70,1.1000000000000001,77,null,"2021-01-21"]
[4,"بشير السعدي ",365,435,70,1.1000000000000001,77,null,"2021-01-21"]
[5,"إبراهيم العنزة ",270,310,40,1.1000000000000001,44,null,"2021-01-21",null,"Printed On:29/01/21"]
[6,"احمد غسان سعيد",400,460,60,1.1000000000000001,66,null,"2021-01-21"]
[7,"أنس عليطو ",275,330,55,1.1000000000000001,60.500000000000007,null,"2021-01-21",null,"Printed On:29/01/21"]
[8,"اسعد سعدي ",450,515,65,1.1000000000000001,71.5,null,"2021-01-21"]
[9,"زكريا جرات ",385,430,45,1.1000000000000001,49.500000000000007,null,"2021-01-21",null,"Printed On:29/01/21"]
[10,"حكمت شقره",815,890,75,1.1000000000000001,82.5,null,"2021-01-21"]

{"sheet":"Target","index":1,"n_rows":35,"n_cols":11,"rows_kept":35,"cut":false,"hidden":false,"merged":[[6,7,7,10]]}
[null," 21/11/2020",null,null," 21/11/2020",null,null,null,null,5,"Start"]
["رقم المشترك",5,null,"رقم المشترك",6]
["الاسم الثلاثي ","إبراهيم العنزة ",null,"الاسم الثلاثي ","احمد غسان سعيد"]
["القراءة السابقة",235,null,"القراءة السابقة",345]
["القراءة الحالية",270,null,"القراءة الحالية",400]
["كمية الاستهلاك",35,null,"كمية الاستهلاك",55]
["سعر الكيلو",1.1000000000000001,null,"سعر الكيلو",1.1000000000000001,null,null,"طباعه "]
["المبلغ المستحق ",41.5,null,"المبلغ المستحق ",63.500000000000007]
[]
[null," 21/11/2020",null,null," 21/11/2020"]
["رقم المشترك",7,null,"رقم المشترك",8]
["الاسم الثلاثي ","أنس عليطو ",null,"الاسم الثلاثي ","اسعد سعدي "]
["القراءة السابقة",220,null,"القراءة السابقة",0]
["القراءة الحالية",275,null,"القراءة الحالية",450]
["كمية الاستهلاك",55,null,"كمية الاستهلاك",450]
["سعر الكيلو",1.1000000000000001,null,"سعر الكيلو",1.1000000000000001]
["المبلغ المستحق ",63.500000000000007,null,"المبلغ المستحق ",498.00000000000006]
[]
[null," 21/11/2020",null,null," 21/11/2020"]
["رقم المشترك ",9,null,"رقم المشترك",10]
["الاسم الثلاثي ","زكريا جرات ",null,"الاسم الثلاثي ","حكمت شقره"]
["القراءة السابقة",340,null,"القراءة السابقة",745]
["القراءة الحالية",385,null,"القراءة الحالية",815]
["كمية الاستهلاك",45,null,"كمية الاستهلاك",70]
["سعر الكيلو",1.1000000000000001,null,"سعر الكيلو",1.1000000000000001]
["المبلغ المستحق ",52.500000000000007,null,"المبلغ المستحق ",80]
[]
[null," 21/11/2020",null,null," 21/11/2020"]
["رقم المشترك",11,null,"رقم المشترك",12]
["الاسم الثلاثي ","احمد سعدي",null,"الاسم الثلاثي ","محمد إسماعيل "]
["القراءة السابقة",863,null,"القراءة السابقة",230]
["القراءة الحالية",950,null,"القراءة الحالية",230]
["كمية الاستهلاك",87,null,"كمية الاستهلاك",0]
["سعر الكيلو",1.1000000000000001,null,"سعر الكيلو",1.1000000000000001]
["المبلغ المستحق ",98.7,null,"المبلغ المستحق ",3]

{"sheet":"By_one","index":2,"n_rows":14,"n_cols":9,"rows_kept":14,"cut":false,"hidden":false,"merged":[[4,3,4,4]]}
[]
[]
[]
[]
[null,null,null,"كهرباء مخيم الكراج",null,null,null,9,"Start"]
[null,null,null,"كود المشترك",9]
[null,null,null,"الاسم الثلاثي ","زكريا جرات ",null,null,1]
[null,null,null,"القراءة السابقة",385]
[null,null,null,"القراءة الحالية",430]
[null,null,null,"كمية الاستهلاك",45]
[null,null,null,"سعر الكيلو",1.1000000000000001]
[null,null,null,"المبلغ المستحق ",49.5]
[null,null,null,"فاقد الشبكة "]
[null,null,null,"تاريخ الدفع ","2021-01-21"]

{"sheet":"التقرير الشهري ","index":3,"n_rows":7,"n_cols":7,"rows_kept":7,"cut":false,"hidden":false,"merged":[[2,4,2,5],[3,6,3,14],[4,6,4,14],[5,6,5,14],[6,6,6,14]]}
[]
[]
[null,null,null,null,"التقرير الشهري "]
[null,null,null,null,"كمية الاستهلاك الاجمالية ",null,"حساب مجموع العامود e من e4 الى نهايه البيانات والتي تقدر ب 700 صف "]
[null,null,null,null,"اجمالي المبلغ المستحق ",null,"حساب مجموع العامود g للمبلغ المستحق كامل من e4 الى النهايه"]
[null,null,null,null,"المبلغ الموجود في الصندوق ",null,"حساب مجموع الخلايا في العامود g ذات اللون الأخضر الفاتح علما عند دفع كل فاتور ستزيد المجموع "]
[null,null,null,null,"المبلغ الذي لم يدفع بعد",null,"حساب مجموع الخلايا في العامود g التي بدون تعبئة ولم تدفع بعد علما عند دفع كل فاتورستنقص من المجموع "]